fUSD/lending_fUSD_20250517
["ID","MTS","AMOUNT","RATE_DAILY","PERIOD"]
[361336140,1747486244256,-151.0,0.00028675,7]
[361336141,1747486244266,-151.0,0.00028675,7]
[361336142,1747486244276,-151.0,0.00028675,7]
[361336143,1747486244285,-151.0,0.00028675,7]
[361336144,1747486244296,-151.0,0.00028675,7]
[361336145,1747486244306,-280.260479,0.00028675,7]
[361336146,1747486244316,-151.0,0.00028675,7]
[361336147,1747486244326,-151.0,0.00028675,7]
[361336148,1747486244336,-151.0,0.00028675,7]
[361336149,1747486244346,-151.0,0.00028675,7]
[361336150,1747486244356,-151.0,0.00028675,7]
[361336151,1747486244366,-259.925032,0.00028675,7]
[361336152,1747486244376,-151.0,0.00028675,7]
[361336153,1747486244386,-151.0,0.00028675,7]
[361336154,1747486244396,-151.0,0.00028675,7]
[361336155,1747486244406,-238.333395,0.00028675,7]
[361336156,1747486244416,-238.333395,0.00028675,7]
[361336157,1747486244427,-197.843086,0.00028675,7]
[361336158,1747486244436,-197.843086,0.00028675,7]
[361336159,1747486244447,-170.00795,0.00028675,7]
[361336160,1747486244456,-170.00795,0.00028675,7]
[361336161,1747486244467,-151.0,0.00028685,7]
[361336162,1747486244477,-151.0,0.00028685,7]
[361336163,1747486244486,-151.0,0.00028685,7]
[361336164,1747486244496,-151.0,0.00028685,7]
[361336165,1747486244507,-151.0,0.00028685,7]
[361336166,1747486244517,-151.0,0.00028685,7]
[361336167,1747486244528,-151.0,0.00028685,7]
[361336168,1747486244538,-151.0,0.00028685,7]
[361336169,1747486244549,-151.0,0.00028685,7]
[361336170,1747486244559,-291.840838,0.00028685,7]
[361336171,1747486244569,-291.840838,0.00028685,7]
[361336172,1747486244579,-151.0,0.00028685,7]
[361336173,1747486244589,-1700.0,0.00028706,2]
[361336174,1747486244599,-231.28369723,0.00028723,2]
[361336175,1747486244609,-53815.53787795,0.00028725,2]
[361336176,1747486244621,-33444.366632,0.00028725,3]
[361336177,1747486244632,-27862.8569383,0.00028725,3]
[361336178,1747486244642,-10265.00201947,0.00028735,2]
[361336179,1747486244652,-500.0,0.00028738,2]
[361336180,1747486244661,-151.0,0.00028767,7]
[361336181,1747486244671,-151.0,0.00028767,7]
[361336182,1747486244681,-151.0,0.00028767,7]
[361336183,1747486244690,-956.605421,0.00028767,7]
[361336184,1747486244701,-956.605421,0.00028767,7]
[361336185,1747486244710,-5741.36,0.00028767,2]
[361336186,1747486244720,-1700.0,0.00028777,2]
[361336187,1747486244729,-151.0,0.00028781,7]
[361336188,1747486244739,-258.785476,0.00028781,7]
[361336189,1747486244748,-153.097814,0.00028782,7]
[361336190,1747486244758,-151.0,0.00028782,7]
[361336191,1747486244767,-198.8349,0.00028782,7]
[361336192,1747486244777,-198.8349,0.00028782,7]
[361336193,1747486244787,-151.0,0.00028782,7]
[361336194,1747486244802,-584.103657,0.0002879,7]
[361336195,1747486244811,-471.129786,0.0002879,7]
[361336196,1747486244821,-584.103657,0.0002879,7]
[361336197,1747486244831,-151.0,0.0002879,7]
[361336198,1747486244840,-151.0,0.0002879,7]
[361336199,1747486244850,-151.0,0.0002879,7]
[361336200,1747486244860,-520.87581,0.0002879,7]
[361336201,1747486244869,-151.0,0.0002879,7]
[361336202,1747486244879,-27862.8569383,0.00028792,3]
[361336203,1747486244889,-151.0,0.00028792,7]
[361336204,1747486244898,-151.0,0.00028792,7]
[361336205,1747486244908,-151.0,0.00028792,7]
[361336206,1747486244918,-374.804411,0.00028792,7]
[361336207,1747486244927,-374.804411,0.00028792,7]
[361336208,1747486245299,-151.0,0.00028792,7]
[361336209,1747486245309,-216.162228,0.00028792,7]
[361336210,1747486245318,-216.162228,0.00028792,7]
[361336212,1747486245328,-161.676702,0.00028792,7]
[361336213,1747486245337,-161.676702,0.00028792,7]
[361336214,1747486245346,-309.312791,0.00028792,7]
[361336215,1747486245355,-309.312791,0.00028792,7]
[361336216,1747486245364,-368.978199,0.00028792,7]
[361336217,1747486245373,-368.978199,0.00028792,7]
[361336218,1747486245383,-910.684929,0.00028792,7]
[361336219,1747486245392,-910.684929,0.00028792,7]
[361336220,1747486245402,-1857.418281,0.00028792,7]
[361336221,1747486245412,-1857.418281,0.00028792,7]
[361336222,1747486245421,-151.0,0.000288,7]
[361336223,1747486245431,-217.505055,0.000288,7]
[361336224,1747486245440,-900.0,0.000288,10]
[361336225,1747486245450,-500.0,0.00028801,2]
[361336226,1747486245459,-151.0,0.00028802,7]
[361336227,1747486245468,-151.0,0.00028802,7]
[361336228,1747486245478,-291.840838,0.00028802,7]
[361336229,1747486245487,-291.840838,0.00028802,7]
[361336230,1747486245496,-151.470082,0.00028802,7]
[361336231,1747486245505,-151.0,0.00028802,7]
[361336232,1747486245515,-151.0,0.00028802,7]
[361336233,1747486245524,-151.0,0.00028802,7]
[361336234,1747486245534,-151.0,0.00028802,7]
[361336235,1747486245543,-151.0,0.00028802,7]
[361336236,1747486245552,-238.333395,0.00028802,7]
[361336237,1747486245561,-238.333395,0.00028802,7]
[361336238,1747486245570,-197.843086,0.00028802,7]
[361336239,1747486245579,-197.843086,0.00028802,7]
[361336240,1747486245589,-170.00795,0.00028802,7]
[361336241,1747486245598,-170.00795,0.00028802,7]
[361336242,1747486245608,-563.05230357,0.00028805,2]
[361336243,1747486245617,-151.0,0.00028812,7]
[361336244,1747486245626,-151.0,0.00028812,7]
[361336245,1747486245636,-151.0,0.00028812,7]
[361336246,1747486245645,-151.0,0.00028812,7]
[361336247,1747486245655,-151.0,0.00028812,7]
[361336248,1747486245664,-151.0,0.00028812,7]
[361336249,1747486245673,-520.87581,0.00028812,7]
[361336250,1747486245683,-151.0,0.00028812,7]
[361336251,1747486245692,-956.605421,0.00028812,7]
[361336252,1747486245701,-956.605421,0.00028812,7]
[361336253,1747486245710,-164.3493049,0.0002882,2]
[361336254,1747486245720,-500.0,0.00028827,2]
[361336255,1747486245730,-1000.0,0.00028853,2]
[361336256,1747486245740,-1500.0,0.00028854,5]
[361336257,1747486245750,-151.0,0.00028861,7]
[361336258,1747486245759,-33444.366632,0.00028863,3]
[361336259,1747486245768,-1000.58305975,0.00028868,5]
[361336260,1747486245778,-1500.0,0.00028868,5]
[361336261,1747486245787,-1500.0,0.00028868,5]
[361336262,1747486245801,-151.0,0.0002888,7]
[361336263,1747486245810,-151.0,0.0002888,7]
[361336264,1747486245819,-1160.19275359,0.0002888,5]
[361336265,1747486245829,-1500.0,0.0002888,5]
[361336266,1747486245838,-1900.0,0.000289,10]
[361336267,1747486245847,-6443.52955766,0.00028911,2]
[361336268,1747486245857,-212.4818585,0.00028922,2]
[361336269,1747486245866,-166.47,0.0002893,2]
[361336270,1747486245877,-1381.64724073,0.00028934,2]
[361336271,1747486245887,-291.840838,0.00028949,7]
[361336272,1747486245896,-291.840838,0.00028949,7]
[361336273,1747486245905,-2110.0,0.00028959,2]
[361336274,1747486245915,-544.97343334,0.00028996,5]
[361336275,1747486245924,-1500.0,0.00028996,5]
[361336276,1747486245933,-526.48241272,0.00028996,5]
[361336277,1747486245943,-1500.0,0.00028996,5]
[361336278,1747486245952,-1500.0,0.00028996,5]
[361336279,1747486245962,-1500.0,0.00028996,5]
[361336280,1747486245972,-1500.0,0.00028996,5]
[361336282,1747486245981,-1500.0,0.00028996,5]
[361336283,1747486245990,-597.0188465,0.00028996,5]
[361336284,1747486245999,-168.49926316,0.00028999,2]
[361336285,1747486246008,-151.08,0.00029,2]
[361336286,1747486246018,-151.08,0.00029,2]
[361336287,1747486246027,-27862.8569383,0.00029004,3]
[361336289,1747486246036,-460.81007505,0.00029014,15]
[361336290,1747486246045,-198.8349,0.00029014,7]
[361336291,1747486246054,-198.8349,0.00029014,7]
[361336292,1747486246063,-151.0,0.00029014,7]
[361336293,1747486246073,-33444.366632,0.0002902,3]
[361336294,1747486246081,-14101.19960558,0.0002902,3]
[361336295,1747486246098,-13761.65733272,0.0002902,3]
[361336296,1747486246107,-222.246309,0.0002903,7]
[361336297,1747486246116,-198.8349,0.0002903,7]
[361336298,1747486246126,-198.8349,0.0002903,7]
[361336299,1747486246135,-956.605421,0.0002903,7]
[361336300,1747486246144,-151.0,0.0002903,7]
[361336301,1747486246153,-956.605421,0.0002903,7]
[361336302,1747486246162,-151.0,0.00029034,7]
[361336303,1747486246172,-151.0,0.00029034,7]
[361336304,1747486246180,-151.0,0.00029034,7]
[361336305,1747486246190,-151.0,0.00029034,7]
[361336306,1747486246199,-151.0,0.00029034,7]
[361336307,1747486246208,-238.333395,0.00029034,7]
[361336308,1747486246217,-238.333395,0.00029034,7]
[361336309,1747486246226,-197.843086,0.00029034,7]
[361336310,1747486246235,-197.843086,0.00029034,7]
[361336311,1747486246244,-170.00795,0.00029034,7]
[361336312,1747486246253,-170.00795,0.00029034,7]
[361336313,1747486246262,-151.0,0.00029035,7]
[361336314,1747486246271,-161.676702,0.0002904,7]
[361336315,1747486246280,-161.676702,0.0002904,7]
[361336316,1747486246289,-309.312791,0.0002904,7]
[361336317,1747486246298,-309.312791,0.0002904,7]
[361336318,1747486246307,-910.684929,0.0002904,7]
[361336319,1747486246316,-910.684929,0.0002904,7]
[361336320,1747486246325,-198.8349,0.0002904,7]
[361336321,1747486246334,-198.8349,0.0002904,7]
[361336322,1747486246343,-151.0,0.00029041,7]
[361336323,1747486246352,-151.0,0.00029041,7]
[361336324,1747486246361,-374.804411,0.00029041,7]
[361336325,1747486246371,-374.804411,0.00029041,7]
[361336326,1747486246380,-151.0,0.00029041,7]
[361336327,1747486246389,-216.162228,0.00029041,7]
[361336328,1747486246400,-216.162228,0.00029041,7]
[361336329,1747486246409,-368.978199,0.00029041,7]
[361336330,1747486246418,-368.978199,0.00029041,7]
[361336331,1747486246427,-1857.418281,0.00029041,7]
[361336332,1747486246437,-1857.418281,0.00029041,7]
[361336333,1747486246447,-10363.82755026,0.00029049,3]
[361336334,1747486246495,-406.74294083,0.00029049,3]
[361336335,1747486246506,-2031.747,0.00029049,3]
[361336336,1747486246518,-321.14149992,0.00029049,3]
[361336337,1747486248462,-150.0,0.00026255,2]
[361336338,1747486248474,-150.0,0.00027624,2]
[361336339,1747486248486,-150.0,0.00028747,2]
[361336340,1747486248496,-150.0,0.00028795,2]
[361336341,1747486248506,-150.0,0.00028853,2]
[361336342,1747486248516,-150.0,0.0002889,2]
[361336343,1747486248526,-150.0,0.0002894,2]
[361336344,1747486248535,-150.0,0.00028951,2]
[361336345,1747486248545,-150.0,0.00028964,2]
[361336346,1747486248555,-150.0,0.00028971,2]
[361336347,1747486248565,-150.0,0.00028978,2]
[361336348,1747486248575,-150.0,0.00029023,2]
[361336349,1747486248584,-150.0,0.00029048,2]
[361336350,1747486248594,-20320.90764099,0.00029049,3]
[361336351,1747486248604,-151.0,0.0002905,7]
[361336352,1747486248614,-151.0,0.0002905,7]
[361336353,1747486248624,-151.0,0.0002905,7]
[361336354,1747486248634,-151.0,0.0002905,7]
[361336355,1747486248644,-238.333395,0.0002905,7]
[361336356,1747486248654,-238.333395,0.0002905,7]
[361336357,1747486248664,-197.843086,0.0002905,7]
[361336358,1747486248674,-197.843086,0.0002905,7]
[361336359,1747486248683,-170.00795,0.0002905,7]
[361336360,1747486248693,-170.00795,0.0002905,7]
[361336361,1747486248702,-956.605421,0.0002905,7]
[361336362,1747486248712,-956.605421,0.0002905,7]
[361336363,1747486248722,-150.0,0.0002905,2]
[361336364,1747486248732,-150.0,0.0002905,2]
[361336365,1747486248741,-150.0,0.00029051,2]
[361336366,1747486248750,-151.0,0.0002906,7]
[361336367,1747486248759,-151.0,0.0002906,7]
[361336368,1747486248769,-520.87581,0.0002906,7]
[361336369,1747486248778,-151.0,0.0002906,7]
[361336370,1747486248787,-291.840838,0.0002906,7]
[361336371,1747486248801,-291.840838,0.0002906,7]
[361336372,1747486248810,-216.162228,0.0002906,7]
[361336373,1747486248820,-216.162228,0.0002906,7]
[361336374,1747486248830,-368.978199,0.0002906,7]
[361336375,1747486248839,-368.978199,0.0002906,7]
[361336376,1747486248848,-520.87581,0.00029065,7]
[361336377,1747486248859,-278.247515,0.00029065,7]
[361336378,1747486248868,-1500.0,0.00029068,5]
[361336379,1747486248878,-151.0,0.0002907,7]
[361336380,1747486248888,-151.0,0.0002907,7]
[361336381,1747486248898,-164.430757,0.0002907,7]
[361336382,1747486248907,-151.0,0.0002907,7]
[361336383,1747486248917,-284.576574,0.0002907,7]
[361336384,1747486248927,-267.221152,0.0002907,7]
[361336385,1747486248936,-271.200088,0.0002907,7]
[361336386,1747486248946,-16245.27967109,0.0002907,3]
[361336387,1747486248986,-150.0,0.0002898,2]
[361336388,1747486248995,-11617.57726721,0.0002907,3]
[361336389,1747486249006,-500.0,0.00029074,2]
[361336390,1747486249016,-682.21828436,0.00029079,10]
[361336391,1747486249026,-584.103657,0.0002908,7]
[361336392,1747486249035,-584.103657,0.0002908,7]
[361336393,1747486249045,-161.676702,0.0002908,7]
[361336394,1747486249055,-161.676702,0.0002908,7]
[361336395,1747486249064,-309.312791,0.0002908,7]
[361336396,1747486249073,-309.312791,0.0002908,7]
[361336397,1747486249083,-910.684929,0.0002908,7]
[361336398,1747486249092,-910.684929,0.0002908,7]
[361336399,1747486249102,-151.0,0.00029084,7]
[361336400,1747486249111,-150.0,0.00029084,2]
[361336401,1747486249120,-1700.0,0.00029085,2]
[361336402,1747486249130,-2000.0,0.00029089,2]
[361336403,1747486249139,-388.96791576,0.00029091,2]
[361336404,1747486249148,-10265.00201947,0.00029096,2]
[361336405,1747486249158,-2000.0,0.00029098,2]
[361336406,1747486249167,-543.2,0.000291,2]
[361336407,1747486249176,-268.09,0.000291,2]
[361336408,1747486249186,-169.55,0.000291,2]
[361336409,1747486249195,-520.875814,0.00029101,7]
[361336410,1747486249204,-291.840838,0.00029101,7]
[361336411,1747486249214,-291.840838,0.00029101,7]
[361336412,1747486249223,-198.8349,0.00029101,7]
[361336413,1747486249232,-198.8349,0.00029101,7]
[361336414,1747486249241,-33444.366632,0.00029102,3]
[361336415,1747486249250,-150.0,0.00029109,2]
[361336416,1747486249260,-151.0,0.00029111,7]
[361336417,1747486249270,-956.605421,0.00029112,7]
[361336418,1747486249279,-956.605421,0.00029112,7]
[361336419,1747486249289,-151.0,0.00029121,7]
[361336420,1747486249298,-374.804411,0.00029121,7]
[361336421,1747486249308,-374.804411,0.00029121,7]
[361336422,1747486249318,-151.0,0.00029121,7]
[361336423,1747486249327,-1857.418281,0.00029121,7]
[361336424,1747486249337,-1857.418281,0.00029121,7]
[361336425,1747486249347,-6104.58820722,0.00029122,3]
[361336426,1747486252033,-297.85156105,0.00027589,2]
[361336427,1747486252042,-150.0,0.00028766,2]
[361336428,1747486252051,-150.0,0.00028846,2]
[361336429,1747486252060,-150.0,0.00028854,2]
[361336430,1747486252069,-150.0,0.00028894,2]
[361336431,1747486252078,-150.0,0.00028929,2]
[361336432,1747486252087,-150.0,0.00028945,2]
[361336433,1747486252097,-150.0,0.00028946,2]
[361336434,1747486252106,-150.0,0.00028963,2]
[361336435,1747486252115,-150.0,0.00028984,2]
[361336436,1747486252124,-150.0,0.00029009,2]
[361336437,1747486252133,-150.0,0.00029017,2]
[361336438,1747486252142,-150.0,0.00029021,2]
[361336439,1747486252151,-150.0,0.0002903,2]
[361336440,1747486252160,-150.0,0.00029035,2]
[361336441,1747486252170,-150.0,0.00029042,2]
[361336442,1747486252179,-150.0,0.00029058,2]
[361336443,1747486252188,-150.0,0.00029089,2]
[361336444,1747486252197,-150.0,0.00029109,2]
[361336445,1747486252207,-150.0,0.00029113,2]
[361336446,1747486252216,-150.0,0.00029121,2]
[361336447,1747486252225,-21758.26873108,0.00029122,3]
[361336448,1747486252234,-150.0,0.00029129,2]
[361336449,1747486252243,-209.678864,0.00029132,7]
[361336450,1747486252252,-151.0,0.00029132,7]
[361336451,1747486252261,-151.0,0.00029132,7]
[361336452,1747486252271,-238.333395,0.00029132,7]
[361336453,1747486252280,-238.333395,0.00029132,7]
[361336454,1747486252289,-197.843086,0.00029132,7]
[361336455,1747486252298,-197.843086,0.00029132,7]
[361336456,1747486252307,-170.00795,0.00029132,7]
[361336457,1747486252317,-170.00795,0.00029132,7]
[361336458,1747486252326,-216.162228,0.00029132,7]
[361336459,1747486252335,-216.162228,0.00029132,7]
[361336460,1747486252344,-368.978199,0.00029132,7]
[361336461,1747486252353,-368.978199,0.00029132,7]
[361336462,1747486252363,-150.0,0.00029144,2]
[361336463,1747486252372,-150.0,0.00029145,2]
[361336464,1747486252382,-150.0,0.00029152,2]
[361336465,1747486252391,-150.0,0.00029155,2]
[361336466,1747486252400,-2000.0,0.00029159,2]
[361336467,1747486252410,-150.0,0.00029166,2]
[361336468,1747486252419,-150.0,0.00029175,2]
[361336469,1747486252428,-150.0,0.00029183,2]
[361336470,1747486252437,-150.0,0.00029185,2]
[361336471,1747486252447,-151.0,0.00029187,7]
[361336472,1747486252456,-150.0,0.00029188,2]
[361336473,1747486252466,-150.0,0.00029188,2]
[361336474,1747486252475,-150.0,0.00029189,2]
[361336475,1747486252484,-150.0,0.00029195,2]
[361336476,1747486252494,-500.0,0.00029205,2]
[361336477,1747486252503,-150.0,0.00029208,2]
[361336478,1747486252512,-150.0,0.00029212,2]
[361336479,1747486252522,-150.0,0.00029216,2]
[361336480,1747486252532,-150.0,0.00029219,2]
[361336481,1747486252541,-161.676702,0.00029221,7]
[361336482,1747486252551,-161.676702,0.00029221,7]
[361336483,1747486252560,-309.312791,0.00029221,7]
[361336484,1747486252569,-309.312791,0.00029221,7]
[361336485,1747486252579,-910.684929,0.00029221,7]
[361336486,1747486252588,-910.684929,0.00029221,7]
[361336487,1747486252598,-198.8349,0.00029221,7]
[361336488,1747486252607,-198.834908,0.00029221,7]
[361336489,1747486252617,-2000.0,0.00029222,2]
[361336490,1747486252626,-150.0,0.00029222,2]
[361336491,1747486252635,-150.0,0.00029229,2]
[361336492,1747486252645,-150.0,0.00029237,2]
[361336493,1747486252654,-150.0,0.00029239,2]
[361336494,1747486252663,-1381.64724073,0.00029242,2]
[361336495,1747486252672,-1306.54110866,0.00029245,20]
[361336496,1747486252682,-150.0,0.00029246,2]
[361336497,1747486252691,-2000.0,0.00029248,2]
[361336498,1747486252700,-150.0,0.00029254,2]
[361336499,1747486252710,-151.0,0.00029255,7]
[361336500,1747486252719,-151.0,0.00029256,7]
[361336501,1747486252728,-500.0,0.00029265,2]
[361336502,1747486252737,-150.0,0.00029297,2]
[361336503,1747486252746,-1935.25104254,0.000293,2]
[361336504,1747486252755,-374.804411,0.000293,7]
[361336505,1747486252765,-374.804411,0.000293,7]
[361336506,1747486252775,-1857.418281,0.000293,7]
[361336507,1747486252785,-1857.418281,0.000293,7]
[361336508,1747486252797,-1000.0,0.00029307,2]
[361336509,1747486252808,-150.0,0.00029308,2]
[361336510,1747486252817,-150.0,0.00029308,2]
[361336511,1747486252827,-150.0,0.00029311,2]
[361336512,1747486252837,-150.0,0.00029317,2]
[361336513,1747486252847,-150.0,0.00029324,2]
[361336514,1747486252857,-1700.0,0.00029329,2]
[361336515,1747486252867,-150.0,0.00029334,2]
[361336516,1747486252878,-1000.0,0.00029337,2]
[361336517,1747486252887,-33444.366632,0.00029342,3]
[361336518,1747486252897,-27862.8569383,0.00029342,3]
[361336519,1747486252907,-150.0,0.00029347,2]
[361336520,1747486252916,-401.69493971,0.00029352,2]
[361336521,1747486252926,-150.0,0.00029366,2]
[361336522,1747486252936,-956.605421,0.00029368,7]
[361336523,1747486252945,-956.605426,0.00029368,7]
[361336524,1747486252955,-150.0,0.00029369,2]
[361336525,1747486252965,-2000.0,0.00029373,2]
[361336526,1747486252976,-216.162228,0.00029379,7]
[361336527,1747486252986,-216.162228,0.00029379,7]
[361336528,1747486252995,-368.978199,0.00029379,7]
[361336529,1747486253005,-368.978199,0.00029379,7]
[361336530,1747486253015,-150.0,0.00029383,2]
[361336531,1747486253024,-151.0,0.00029388,7]
[361336532,1747486253033,-151.0,0.00029388,7]
[361336533,1747486253043,-238.333395,0.00029388,7]
[361336534,1747486253052,-238.333395,0.00029388,7]
[361336535,1747486253063,-197.843086,0.00029388,7]
[361336536,1747486253072,-197.843086,0.00029388,7]
[361336537,1747486253083,-170.00795,0.00029388,7]
[361336538,1747486253092,-170.00795,0.00029388,7]
[361336539,1747486253102,-291.840838,0.00029399,7]
[361336540,1747486253111,-291.840838,0.00029399,7]
[361336541,1747486253122,-1559.90537741,0.00029402,5]
[361336542,1747486253131,-150.0,0.00029404,2]
[361336543,1747486253143,-150.0,0.00029405,2]
[361336544,1747486253156,-150.0,0.00029407,2]
[361336545,1747486253165,-6443.52955766,0.00029408,2]
[361336546,1747486253175,-150.0,0.0002941,2]
[361336547,1747486253184,-200.0,0.00029411,14]
[361336548,1747486253193,-150.0,0.00029413,2]
[361336549,1747486253203,-2000.0,0.00029416,5]
[361336550,1747486253212,-2000.0,0.00029416,5]
[361336551,1747486253222,-150.0,0.00029417,2]
[361336552,1747486253231,-161.676702,0.00029419,7]
[361336553,1747486253241,-161.676702,0.00029419,7]
[361336554,1747486253250,-309.312791,0.00029419,7]
[361336555,1747486253260,-309.312791,0.00029419,7]
[361336556,1747486253269,-910.684929,0.00029419,7]
[361336557,1747486253279,-910.684929,0.00029419,7]
[361336558,1747486253288,-150.0,0.00029419,2]
[361336559,1747486253297,-150.0,0.0002942,2]
[361336560,1747486253306,-291.840838,0.00029421,7]
[361336561,1747486253315,-291.840839,0.00029421,7]
[361336562,1747486253324,-151.0,0.00029421,7]
[361336563,1747486253333,-150.0,0.00029427,2]
[361336564,1747486253343,-1500.58901739,0.00029428,5]
[361336565,1747486253352,-150.0,0.00029429,2]
[361336566,1747486253361,-33444.366632,0.00029431,3]
[361336567,1747486253371,-27862.8569383,0.00029431,3]
[361336568,1747486253380,-150.0,0.00029432,2]
[361336569,1747486253390,-374.804411,0.00029439,7]
[361336570,1747486253399,-374.804411,0.00029439,7]
[361336571,1747486253408,-1857.418281,0.00029439,7]
[361336572,1747486253418,-1857.418281,0.00029439,7]
[361336573,1747486253427,-151.0,0.00029441,7]
[361336574,1747486253437,-219.97013,0.00029441,7]
[361336575,1747486253447,-150.0,0.00029441,2]
[361336576,1747486253457,-150.0,0.00029442,2]
[361336577,1747486253467,-368.978199,0.00029452,7]
[361336578,1747486253477,-368.978199,0.00029452,7]
[361336579,1747486253486,-500.0,0.00029453,2]
[361336580,1747486253496,-150.0,0.00029454,2]
[361336581,1747486253505,-10265.00201947,0.00029457,2]
[361336582,1747486253515,-150.0,0.00029458,2]
[361336583,1747486253525,-216.162228,0.00029459,7]
[361336584,1747486253534,-216.162228,0.00029459,7]
[361336585,1747486253543,-2110.0,0.00029459,2]
[361336586,1747486253553,-584.103657,0.00029461,7]
[361336587,1747486253562,-584.103662,0.00029461,7]
[361336588,1747486253572,-238.333395,0.00029461,7]
[361336589,1747486253582,-238.333395,0.00029461,7]
[361336590,1747486253591,-170.00795,0.00029461,7]
[361336591,1747486253600,-170.00795,0.00029461,7]
[361336592,1747486253611,-150.0,0.00029464,2]
[361336593,1747486253621,-150.0,0.00029465,2]
[361336594,1747486253630,-150.0,0.00029466,2]
[361336595,1747486253640,-151.0,0.00029471,7]
[361336596,1747486253649,-298.938232,0.00029471,7]
[361336597,1747486253658,-197.843086,0.00029471,7]
[361336598,1747486253668,-197.843086,0.00029471,7]
[361336599,1747486253677,-150.0,0.00029473,2]
[361336600,1747486253688,-150.0,0.00029475,2]
[361336601,1747486253698,-150.0,0.00029485,2]
[361336602,1747486253707,-150.0,0.00029487,2]
[361336603,1747486253717,-543.2,0.000295,2]
[361336604,1747486253726,-268.09,0.000295,2]
[361336605,1747486253735,-169.55,0.000295,2]
[361336606,1747486253745,-150.0,0.0002951,2]
[361336607,1747486253754,-150.0,0.00029521,2]
[361336608,1747486253764,-150.0,0.00029525,2]
[361336609,1747486253773,-150.0,0.00029526,2]
[361336610,1747486253783,-33444.366632,0.00029531,3]
[361336611,1747486253793,-27862.8569383,0.00029531,3]
[361336612,1747486253807,-150.0,0.00029532,2]
[361336613,1747486253816,-150.0,0.00029533,2]
[361336614,1747486253826,-150.0,0.00029534,2]
[361336615,1747486253835,-505.06597432,0.00029544,5]
[361336616,1747486253847,-2000.0,0.00029544,5]
[361336617,1747486253857,-2000.0,0.00029544,5]
[361336618,1747486253868,-262.36303683,0.00029544,5]
[361336619,1747486253881,-2000.0,0.00029544,5]
[361336620,1747486253891,-2000.0,0.00029544,5]
[361336621,1747486253900,-161.676702,0.00029551,7]
[361336622,1747486253909,-161.676702,0.00029551,7]
[361336623,1747486253918,-309.312791,0.00029551,7]
[361336624,1747486253928,-309.312791,0.00029551,7]
[361336625,1747486253937,-910.684929,0.00029551,7]
[361336626,1747486253946,-910.684929,0.00029551,7]
[361336627,1747486253955,-329.5,0.00029588,15]
[361336628,1747486253965,-500.0,0.00029589,30]
[361336629,1747486253977,-500.0,0.00029589,30]
[361336630,1747486253987,-374.804411,0.00029596,7]
[361336631,1747486253996,-374.804411,0.00029596,7]
[361336632,1747486254006,-1857.418281,0.00029596,7]
[361336633,1747486254015,-1857.418281,0.00029596,7]
[361336634,1747486254024,-151.0,0.00029599,7]
[361336635,1747486254033,-238.333395,0.00029605,7]
[361336636,1747486254042,-238.333395,0.00029605,7]
[361336637,1747486254323,-170.00795,0.00029605,7]
[361336638,1747486254338,-170.00795,0.00029605,7]
[361336639,1747486254348,-1639.42357997,0.00029616,5]
[361336640,1747486254357,-167.59027701,0.00029644,2]
[361336641,1747486254366,-4039.0,0.00029653,2]
[361336642,1747486254375,-154.0,0.00029653,2]